bitfinex/quotes_SOLUSD_20240718
["timestamp","ask_amount","ask_price","bid_price","bid_amount"]
[1721323927406,15.9736,157.45,157.36,31.4141]
[1721323927407,15.51,157.41,157.36,31.4141]
[1721323927611,15.51,157.4,157.36,15.8867]
[1721323927909,15.51,157.4,157.36,22.2415]
[1721323928116,21.8629,157.41,157.37,6.3544]
[1721323928413,15.51,157.41,157.38,46.27057001]
[1721323928594,21.8624,157.42,157.38,46.27057001]
[1721323929090,21.8624,157.42,157.38,45.0]
[1721323929293,15.51,157.41,157.38,45.0]
[1721323929504,15.51,157.41,157.36,15.8867]
[1721323929705,6.3533,157.4,157.36,15.8867]
[1721323929891,21.8629,157.41,157.37,45.0]
[1721323931811,21.8629,157.41,157.37,51.3544]
[1721323932190,15.51,157.41,157.37,52.62505215]
[1721323932387,15.51,157.41,157.38,6.354]
[1721323932991,15.51,157.41,157.37,51.3543]
[1721323933294,15.51,157.41,157.38,7.62455581]
[1721323933600,15.51,157.41,157.39,1.2705626]
[1721323934003,15.51,157.41,157.38,6.3539]
[1721323936725,15.51,157.4,157.37,51.3544]
[1721323936906,15.51,157.4,157.37,6.3544]
[1721323937106,15.51,157.4,157.36,22.2414]
[1721323938027,15.51,157.44,157.36,15.8867]
[1721323938028,15.51,157.38,157.36,15.8867]
[1721323938220,15.51,157.38,157.35,6.3552]
[1721323939719,15.51,157.38,157.36,6.3547]
[1721323941226,15.51,157.38,157.35,22.2428]
[1721323941716,15.51,157.37,157.34,6.3555]
[1721323941921,6.6153,157.42,157.32,15.8904]
[1721323941922,15.51,157.35,157.32,15.8904]
[1721323942119,15.51,157.34,157.32,15.8904]
[1721323942319,15.51,157.35,157.32,15.8904]
[1721323943028,15.51,157.35,157.32,22.2468]
[1721323943635,15.51,157.35,157.32,15.8904]
[1721323944135,15.51,157.35,157.32,22.2468]
[1721323944512,16.1251,157.38,157.33,1.27116196]
[1721323944714,15.51,157.37,157.34,6.3553]
[1721323945927,15.51,157.38,157.34,6.3553]
[1721323946426,21.864,157.38,157.34,6.3553]
[1721323947522,21.6379,157.42,157.36,6.3548]
[1721323947722,21.6379,157.42,157.34,22.2437]
[1721323947723,21.8636,157.39,157.34,22.2437]
[1721323947916,21.8636,157.39,157.35,45.0]
[1721323948231,15.51,157.38,157.35,45.0]
[1721323948706,15.51,157.38,157.33,15.51]
[1721323948707,15.51,157.38,157.33,6.3559]
[1721323948904,15.51,157.37,157.34,45.0]
[1721323949633,21.8645,157.37,157.34,45.0]
[1721323950323,15.51,157.37,157.34,45.0]
[1721323950513,15.51,157.37,157.34,51.3556]
[1721323951332,21.8641,157.38,157.35,1.27088393]
[1721323951539,15.51,157.39,157.36,1.27080714]
[1721323952534,15.51,157.39,157.35,22.2428]
[1721323952945,6.3535,157.4,157.35,22.2428]
[1721323953130,21.8636,157.39,157.35,22.2428]
[1721323953449,15.51,157.39,157.35,22.2428]
[1721323953622,15.51,157.39,157.36,46.2707358]
[1721323954019,6.3532,157.4,157.36,52.6254358]
[1721323954342,21.8632,157.4,157.36,46.2707358]
[1721323955746,6.3532,157.4,157.36,52.6254358]
[1721323956115,21.8632,157.4,157.36,46.2707358]
[1721323956328,21.8636,157.39,157.36,46.2707358]
[1721323956715,21.8633,157.4,157.36,46.2707358]
[1721323957244,21.8633,157.4,157.36,45.0]
[1721323957419,6.3536,157.39,157.36,45.0]
[1721323957618,21.8636,157.39,157.36,45.0]
[1721323957918,21.864,157.38,157.36,45.0]
[1721323958120,15.51,157.39,157.36,45.0]
[1721323959030,21.8637,157.39,157.36,45.0]
[1721323959916,21.8633,157.4,157.36,45.0]
[1721323960416,6.3529,157.41,157.37,1.27067175]
[1721323960618,21.8629,157.41,157.37,1.27067175]
[1721323960920,6.3529,157.41,157.37,6.3542]
[1721323961120,21.8629,157.41,157.38,45.0]
[1721323961737,28.2583326,157.46,157.39,1.27056624]
[1721323961939,21.8616,157.44,157.4,1.27038425]
[1721323962240,21.8616,157.44,157.4,46.27038425]
[1721323962822,21.8616,157.44,157.4,45.0]
[1721323963220,21.862,157.43,157.4,45.0]
[1721323963738,15.8767,157.47,157.38,6.3539]
[1721323963739,21.8626,157.42,157.38,6.3539]
[1721323964243,15.51,157.41,157.38,6.3539]
[1721323964444,21.8626,157.42,157.38,6.3539]
[1721323964647,15.51,157.42,157.38,6.3539]
[1721323964948,21.8624,157.42,157.38,6.3539]
[1721323965239,6.3521,157.43,157.38,6.3539]
[1721323965447,15.51,157.42,157.38,6.3539]
[1721323966955,15.51,157.41,157.38,6.3539]
[1721323968450,15.51,157.41,157.39,6.3536]
[1721323968819,21.8621,157.43,157.39,6.3536]
[1721323969835,15.51,157.43,157.39,6.3536]
[1721323970031,6.61395066,157.47,157.39,6.3536]
[1721323970231,15.51,157.43,157.39,6.3536]
[1721323970950,20.0,157.46,157.4,46.27051832]
[1721323971125,15.51,157.45,157.41,6.3527]
[1721323971429,15.51,157.45,157.42,1.27036574]
[1721323971625,26.3509,157.46,157.42,7.62276574]
[1721323971626,41.8609,157.46,157.42,7.62276574]
[1721323972028,41.8609,157.46,157.42,1.27036574]
[1721323972233,6.3512,157.45,157.42,1.27036574]
[1721323972534,21.8612,157.45,157.42,1.27036574]
[1721323973153,21.8606,157.47,157.41,31.3916]
[1721323973447,15.51,157.48,157.44,6.3515]
[1721323973648,15.51,157.48,157.44,7.62161767]
[1721323974051,15.51,157.48,157.43,15.8795]
[1721323974228,21.8606,157.47,157.43,15.8795]
[1721323974630,21.8606,157.47,157.43,22.2314]
[1721323974848,15.51,157.47,157.44,6.3515]
[1721323975534,21.8601,157.48,157.44,6.3515]
[1721323976532,21.8601,157.48,157.45,1.27010963]
[1721323976828,21.8601,157.48,157.44,6.3515]
[1721323977030,21.8601,157.48,157.44,7.62161496]
[1721323977448,21.8601,157.48,157.44,6.3515]
[1721323977676,15.51,157.48,157.44,6.3515]
[1721323977838,21.8596,157.49,157.45,7.62130948]
[1721323978034,21.8596,157.49,157.45,6.3512]
[1721323978657,21.8596,157.49,157.44,7.62143737]
[1721323979328,21.8596,157.49,157.45,51.3511]
[1721323979731,6.35,157.48,157.45,45.0]
[1721323979932,6.35,157.48,157.44,6.3514]
[1721323980237,21.8597,157.49,157.45,6.3511]
[1721323980430,21.8597,157.49,157.45,51.3511]
[1721323982827,21.86,157.48,157.45,45.0]
[1721323983030,21.86,157.48,157.44,45.0]
[1721323983244,21.8604,157.47,157.44,45.0]
[1721323983960,6.3505,157.47,157.44,45.0]
[1721323985354,15.51,157.48,157.44,45.0]
[1721323985355,21.86,157.48,157.44,45.0]
[1721323986563,21.86,157.48,157.44,51.3515]
[1721323986745,15.51,157.49,157.45,15.8776]
[1721323986946,15.51,157.52,157.48,6.3498]
[1721323987153,21.8581,157.53,157.48,7.61965485]
[1721323987667,21.8581,157.53,157.49,7.61930526]
[1721323987970,281.9576,157.54,157.49,7.61930526]
[1721323988265,260.1,157.54,157.5,15.51]
[1721323988564,260.1,157.54,157.5,60.51]
[1721323989976,260.1,157.54,157.51,6.3486]
[1721323991460,260.1,157.54,157.52,15.51]
[1721323991655,260.1,157.54,157.53,51.3479]
[1721323991873,260.1,157.54,157.53,66.8579]
[1721323992173,260.1,157.54,157.53,45.0]
[1721323992390,260.1,157.54,157.52,6.3483]
[1721323993573,260.1,157.54,157.52,7.61777313]
[1721323993982,15.51,157.56,157.52,7.61777313]
[1721323994479,15.51,157.57,157.53,6.3476]
[1721323995374,15.51,157.57,157.52,6.3483]
[1721323995375,15.51,157.56,157.52,6.3483]
[1721323995580,15.51,157.54,157.51,22.2199]
[1721323995756,62.04,157.6,157.48,15.875]
[1721323995757,15.51,157.52,157.48,15.875]
[1721323995959,15.51,157.52,157.49,6.3492]
[1721323996466,15.51,157.53,157.5,51.349]
[1721323996665,15.51,157.53,157.5,6.349]
[1721323999149,15.51,157.52,157.49,6.3494]
[1721323999978,15.51,157.51,157.49,6.3494]
[1721324001267,6.3474,157.55,157.51,15.8715]
[1721324001474,15.51,157.52,157.51,15.8715]
[1721324001873,15.51,157.52,157.5,6.349]
[1721324002600,15.51,157.52,157.49,6.3495]
[1721324002887,15.51,157.5,157.48,22.2241]
[1721324003058,15.51,157.49,157.48,15.8742]
[1721324003485,15.3504,157.56,157.48,15.51]
[1721324003692,15.51,157.54,157.52,6.3483]
[1721324003982,15.51,157.53,157.5,6.349]
[1721324004385,15.51,157.53,157.49,15.8735]
[1721324004682,15.51,157.53,157.51,15.8716]
[1721324004979,15.51,157.54,157.51,15.8716]
[1721324005986,15.51,157.54,157.52,6.3484]
[1721324006581,15.51,157.54,157.51,22.2203]
[1721324006787,15.51,157.53,157.51,15.8716]
[1721324006960,15.51,157.53,157.5,6.3491]
[1721324007286,15.51,157.53,157.51,7.61826862]
[1721324007789,15.51,157.54,157.51,7.61826862]
[1721324008580,15.51,157.54,157.51,6.3486]
[1721324010093,15.51,157.54,157.5,22.2218]
[1721324010588,15.51,157.53,157.5,22.2218]
[1721324011477,6.3471,157.55,157.51,6.3486]
[1721324011671,6.62702602,157.59,157.52,17.14000504]
[1721324011879,15.51,157.56,157.52,17.14000504]
[1721324012392,15.51,157.56,157.53,6.3479]
[1721324012570,15.51,157.56,157.52,15.8704]
[1721324012772,15.51,157.55,157.52,22.2186]
[1721324014299,15.51,157.53,157.51,6.3487]
[1721324014468,6.3473,157.55,157.51,6.3487]
[1721324014674,15.51,157.53,157.51,6.3487]
[1721324014874,15.51,157.54,157.51,6.3487]
[1721324015382,15.51,157.54,157.49,15.8732]
[1721324015573,15.51,157.53,157.5,45.0]
[1721324016485,15.51,157.53,157.52,6.3484]
[1721324016795,15.51,157.53,157.51,6.3486]
[1721324016991,15.51,157.53,157.52,6.3484]
[1721324017208,15.51,157.54,157.52,6.3484]
[1721324017579,15.51,157.54,157.51,6.3486]
[1721324017984,15.51,157.54,157.52,6.3483]
[1721324018489,15.51,157.56,157.52,6.3483]
[1721324018681,15.51,157.56,157.51,17.14130692]
[1721324018682,22.7228,157.6,157.53,17.13900444]
[1721324018888,15.51,157.57,157.54,6.3473]
[1721324019270,15.51,157.56,157.54,6.3473]
[1721324019688,15.51,157.56,157.53,17.13900444]
[1721324019689,15.51,157.56,157.53,23.48690444]
[1721324019903,15.51,157.56,157.53,22.2174]
[1721324021799,15.51,157.56,157.54,6.3475]
[1721324021976,15.51,157.56,157.53,22.2174]
[1721324022585,6.3465,157.57,157.53,22.2174]
[1721324022586,15.51,157.55,157.53,22.2174]
[1721324023607,15.51,157.56,157.53,22.2174]
[1721324023816,15.51,157.54,157.49,6.3495]
[1721324024101,91.39100638,157.6,157.48,15.8746]
[1721324024102,15.51,157.51,157.48,15.8746]
[1721324024474,15.51,157.51,157.48,22.2244]
[1721324026070,6.348,157.53,157.48,22.2244]
[1721324026071,15.51,157.5,157.48,22.2244]
[1721324026290,15.51,157.51,157.48,23.49423777]
[1721324026508,15.51,157.51,157.49,6.3495]
[1721324028214,15.51,157.52,157.48,15.8746]
[1721324028388,6.3464,157.57,157.52,6.3483]
[1721324028590,15.51,157.56,157.53,6.3478]
[1721324028894,15.51,157.55,157.52,6.3483]
[1721324029509,6.3468,157.56,157.52,6.3483]
[1721324029691,15.51,157.55,157.53,6.3478]
[1721324030393,15.51,157.55,157.52,17.14009967]
[1721324030595,15.51,157.55,157.52,15.8706]
[1721324032416,107.25430638,157.6,157.49,60.8733]
[1721324032417,15.51,157.54,157.49,60.8733]
[1721324032803,15.51,157.53,157.49,60.8733]
[1721324033305,15.51,157.54,157.5,7.618431]
[1721324033825,107.25430638,157.6,157.49,67.2228]
[1721324033826,15.51,157.53,157.49,67.2228]
[1721324034122,15.51,157.52,157.49,22.2228]
[1721324034733,15.51,157.53,157.49,22.2228]
[1721324035016,15.51,157.52,157.49,22.2228]
[1721324035398,15.51,157.52,157.49,15.8733]
[1721324035605,15.51,157.51,157.49,15.8733]
[1721324035808,15.51,157.51,157.49,22.2228]
[1721324036628,15.51,157.51,157.49,15.8733]
[1721324037312,15.51,157.51,157.48,6.3498]
[1721324037740,15.51,157.5,157.48,6.3498]
[1721324038403,15.51,157.51,157.48,6.3498]
[1721324040300,6.3475,157.54,157.49,1.26987278]
[1721324040512,15.51,157.52,157.49,1.26987278]
[1721324040727,15.51,157.52,157.49,1.26976801]
[1721324040899,15.51,157.52,157.5,6.3491]
[1721324041816,15.51,157.53,157.51,6.3488]
[1721324042116,6.3471,157.56,157.51,6.3488]
[1721324042117,15.51,157.54,157.52,6.3481]
[1721324042921,15.51,157.55,157.52,15.8707]
[1721324043495,15.51,157.54,157.52,15.8707]
[1721324045323,15.51,157.54,157.51,6.3487]
[1721324045529,15.51,157.52,157.49,38.8595]
[1721324046029,15.51,157.5,157.46,22.2271]
[1721324046203,15.51,157.51,157.47,1.26980752]
[1721324046399,15.51,157.52,157.47,15.51]
[1721324046596,15.51,157.51,157.49,6.3495]
[1721324046802,15.51,157.51,157.48,22.2246]
[1721324047601,15.51,157.5,157.48,22.2246]
[1721324048026,15.51,157.51,157.48,22.2246]
[1721324048322,15.51,157.5,157.48,22.2246]
[1721324048526,15.51,157.5,157.48,15.8747]
[1721324050034,15.51,157.5,157.47,6.3502]
[1721324050244,15.51,157.5,157.39,25.456]
[1721324050245,15.51,157.48,157.41,40.30116763]
[1721324050530,15.51,157.46,157.44,6.3516]
[1721324050700,6.3497,157.49,157.45,6.3512]
[1721324050901,15.51,157.47,157.44,6.3515]
[1721324051203,15.51,157.46,157.42,15.8803]
[1721324051434,6.3505,157.47,157.42,15.8803]
[1721324051435,15.51,157.45,157.42,15.8803]
[1721324051824,15.51,157.44,157.42,22.2326]
[1721324052334,15.51,157.43,157.42,15.8803]
[1721324052638,15.51,157.43,157.41,6.3527]
[1721324053836,62.04,157.52,157.4,6.3531]
[1721324053837,15.51,157.42,157.4,6.3531]
[1721324054508,15.51,157.43,157.41,6.3528]
[1721324055112,15.51,157.43,157.4,6.3532]
[1721324055438,6.351,157.46,157.41,6.3524]
[1721324055601,15.51,157.44,157.41,6.3524]
[1721324055805,6.351,157.46,157.42,1.27039501]
[1721324055806,15.51,157.46,157.42,1.27039501]
[1721324056003,15.51,157.46,157.43,6.3517]
[1721324056219,15.51,157.46,157.42,6.3523]
[1721324056432,15.51,157.45,157.42,6.3523]
[1721324057913,15.51,157.46,157.44,6.3516]
[1721324058113,15.51,157.47,157.45,6.3509]
[1721324058315,15.51,157.47,157.44,6.3515]
[1721324059008,21.8604,157.47,157.43,17.14976377]
[1721324059322,15.51,157.46,157.43,22.2313]
[1721324059519,15.51,157.46,157.44,6.3516]
[1721324060127,15.51,157.46,157.43,23.50159161]
[1721324060833,6.35,157.48,157.43,23.50159161]
[1721324061136,15.51,157.49,157.46,6.3506]
[1721324061323,6.3495,157.5,157.46,1.2699771]
[1721324061324,15.51,157.5,157.46,1.2699771]
[1721324061511,15.51,157.5,157.45,15.8776]
[1721324061850,15.8798,157.52,157.46,6.3507]
[1721324061851,15.51,157.49,157.46,6.3507]
[1721324062745,15.51,157.48,157.46,6.3507]
[1721324062925,15.51,157.48,157.45,22.2286]
[1721324063826,15.51,157.47,157.45,15.8776]
[1721324064030,15.51,157.48,157.45,22.2287]
[1721324064424,15.51,157.48,157.46,6.3508]
[1721324065652,15.51,157.48,157.45,22.2288]
[1721324065830,15.51,157.48,157.46,6.3507]
[1721324066029,15.51,157.48,157.45,22.2287]
[1721324066431,15.51,157.46,157.42,22.092]
[1721324066632,15.51,157.46,157.44,6.3513]
[1721324066831,15.51,157.47,157.44,6.3513]
[1721324067737,15.51,157.49,157.44,15.8782]
[1721324067947,15.51,157.49,157.47,6.3504]
[1721324068327,6.63075933,157.54,157.48,61.77999676]
[1721324068655,15.51,157.53,157.5,22.2212]
[1721324069736,15.51,157.52,157.5,15.8722]
[1721324070351,6.3476,157.54,157.5,22.2214]
[1721324070856,6.3467,157.56,157.52,6.3483]
[1721324071156,6.3464,157.57,157.53,6.3477]
[1721324071538,6.3464,157.57,157.52,22.2187]
[1721324071737,12.97686234,157.58,157.54,6.3474]
[1721324072044,6.3463,157.57,157.53,51.3478]
[1721324073364,6.3468,157.56,157.52,15.8705]
[1721324075159,6.3473,157.55,157.5,6.349]
[1721324075363,6.3473,157.55,157.49,15.8736]
[1721324075364,6.3473,157.55,157.51,52.61818245]
[1721324075553,6.3469,157.56,157.52,1.26954343]
[1721324076240,6.3472,157.55,157.51,51.3486]
[1721324076560,6.3477,157.54,157.5,6.3491]
[1721324077762,6.3477,157.54,157.49,15.8736]
[1721324077957,6.3477,157.54,157.5,6.3491]
[1721324078163,6.3477,157.54,157.49,22.2231]
[1721324079158,6.3481,157.53,157.49,22.2231]
[1721324079351,53.49606234,157.58,157.49,15.8736]
[1721324079536,20.0,157.57,157.49,15.8736]
[1721324079742,6.3482,157.53,157.49,15.8736]
[1721324080261,6.3484,157.52,157.49,15.8736]
[1721324080657,6.348,157.53,157.49,22.2231]
[1721324081262,20.0,157.57,157.49,22.2231]
[1721324081456,6.3476,157.54,157.49,22.2231]
[1721324082161,6.348,157.53,157.49,22.2231]
[1721324082366,20.0,157.57,157.48,6.3498]
[1721324082663,6.3487,157.52,157.48,6.3498]
[1721324083048,6.3481,157.53,157.49,6.3495]
[1721324083466,6.3476,157.54,157.49,6.3495]
[1721324084352,6.3476,157.54,157.5,6.3491]
[1721324085265,6.3476,157.54,157.49,6.3494]
[1721324085439,6.348,157.53,157.49,6.3494]
[1721324085766,6.3476,157.54,157.48,15.8748]
[1721324085946,6.3476,157.54,157.49,6.3494]
[1721324086347,6.3481,157.53,157.49,6.3494]
[1721324086765,6.3481,157.53,157.48,22.2246]
[1721324087150,6.3485,157.52,157.48,22.2246]
[1721324087463,6.3489,157.51,157.48,15.8748]
[1721324087854,6.3484,157.52,157.48,22.2247]
[1721324089565,53.5999448,157.55,157.48,15.8748]
[1721324089566,6.3489,157.51,157.48,15.8748]
[1721324089768,6.3489,157.51,157.47,6.3502]
[1721324089974,6.3493,157.5,157.46,6.3506]
[1721324090477,53.5999448,157.55,157.41,16.5085]
[1721324090776,6.3503,157.48,157.43,6.3519]
[1721324091074,6.3505,157.47,157.43,6.3519]
[1721324091283,6.35,157.48,157.44,6.3514]
[1721324091652,6.35,157.48,157.43,6.3519]
[1721324092346,15.52,157.45,157.42,22.2329]
[1721324092553,15.52,157.44,157.42,22.2329]
[1721324093150,15.52,157.44,157.43,6.352]
[1721324093450,15.52,157.44,157.42,15.8806]
[1721324093848,15.52,157.43,157.42,15.8806]
[1721324094880,15.52,157.43,157.39,15.8835]
[1721324095176,15.52,157.4,157.39,15.8835]
[1721324095350,15.52,157.4,157.38,6.354]
[1721324095551,15.52,157.39,157.38,6.354]
[1721324096364,15.52,157.39,157.37,6.3543]
[1721324096567,15.52,157.38,157.37,6.3543]
[1721324096778,6.3524,157.43,157.38,6.3538]
[1721324096975,15.52,157.4,157.38,6.3538]
[1721324097693,15.52,157.39,157.33,31.4949]
[1721324097857,16.129,157.43,157.35,6.3549]
[1721324097858,15.52,157.37,157.35,6.3549]
[1721324098274,15.52,157.37,157.36,6.3548]
[1721324098488,15.52,157.37,157.34,6.3556]
[1721324098692,15.52,157.35,157.32,22.2467]
[1721324098860,15.8815,157.42,157.33,6.3558]
[1721324098861,15.52,157.34,157.33,6.3558]
[1721324099586,15.52,157.35,157.34,6.3556]
[1721324099757,15.52,157.37,157.35,6.3552]
[1721324100158,6.3533,157.4,157.35,6.3552]
[1721324100357,6.3529,157.41,157.36,6.3547]
[1721324100583,20.0,157.4,157.36,6.3547]
[1721324100769,20.0,157.4,157.35,6.3551]
[1721324100968,20.0,157.4,157.34,15.8881]
[1721324101165,20.0,157.42,157.34,15.8881]
[1721324101366,6.3541,157.38,157.34,15.8881]
[1721324101598,20.0,157.42,157.34,22.2436]
[1721324101599,6.3537,157.39,157.34,22.2436]
[1721324101995,6.354,157.38,157.34,22.2436]
[1721324102716,6.354,157.38,157.34,15.8881]
[1721324102889,31.06,157.4,157.34,22.2436]
[1721324102890,6.3536,157.39,157.34,22.2436]
[1721324103095,6.3541,157.38,157.34,22.2436]
[1721324103320,37.4136,157.4,157.34,22.2436]
[1721324103607,37.4136,157.4,157.35,6.3551]
[1721324103923,6.3537,157.39,157.35,6.3551]
[1721324104410,37.4133,157.4,157.34,15.8881]
[1721324104618,37.4133,157.4,157.35,6.3551]
[1721324105323,6.3538,157.39,157.34,22.2437]
[1721324105519,31.06,157.4,157.36,6.3547]
[1721324105806,37.4133,157.4,157.36,6.3547]
[1721324105989,6.3536,157.39,157.34,22.2433]
[1721324106187,6.3541,157.38,157.34,22.2433]
[1721324106508,37.4132,157.4,157.35,6.355]
[1721324106708,6.3543,157.38,157.34,15.8881]
[1721324106891,6.3543,157.38,157.34,22.2437]
[1721324107211,6.3543,157.38,157.34,15.8881]
[1721324107398,6.3543,157.38,157.34,22.2437]
[1721324108111,6.3537,157.39,157.34,22.2437]
[1721324110407,6.3533,157.4,157.34,15.8881]
[1721324110618,6.3529,157.41,157.36,6.3545]
[1721324110788,20.0,157.4,157.36,6.3545]
[1721324111109,26.3533,157.4,157.36,6.3545]
[1721324112703,31.06,157.43,157.36,15.8868]
[1721324113013,6.3527,157.42,157.37,6.3543]
[1721324113217,6.3529,157.41,157.37,6.3543]
[1721324114307,46.9376,157.46,157.38,15.8846]
[1721324114615,6.3414,157.48,157.39,1.27059733]
[1721324114819,46.9347,157.49,157.4,1.27043334]
[1721324114993,6.351,157.46,157.4,15.8827]
[1721324115316,6.351,157.46,157.41,6.3526]
[1721324115488,6.351,157.46,157.42,6.3524]
[1721324116722,6.351,157.46,157.41,6.3527]
[1721324116913,46.9347,157.49,157.4,22.2357]
[1721324117117,20.0,157.48,157.4,22.2357]
[1721324117609,6.3513,157.45,157.41,7.62299772]
[1721324117829,20.0,157.48,157.41,1.27049772]
[1721324117990,20.0,157.48,157.41,46.27049772]
[1721324118194,6.3508,157.46,157.42,6.3521]
[1721324118803,15.0844,157.51,157.43,1.27037256]
[1721324119699,6.3502,157.48,157.44,6.3515]
[1721324119894,6.3504,157.47,157.43,7.62227256]
[1721324120207,15.0844,157.51,157.43,1.27037256]
[1721324120522,6.3505,157.47,157.43,7.62227256]
[1721324120816,6.3505,157.47,157.43,6.3519]
[1721324121025,6.3509,157.46,157.42,32.4701]
[1721324121202,6.3505,157.47,157.43,1.270293]
[1721324121391,6.3505,157.47,157.43,7.621993]
[1721324121790,6.35,157.48,157.44,6.3514]
[1721324121996,59.63516909,157.52,157.45,1.27014129]
[1721324121997,12.97196909,157.52,157.45,1.27014129]
[1721324122301,31.7203,157.63,157.42,16.5895]
[1721324122302,6.3479,157.54,157.49,6.3492]
[1721324122612,46.9255,157.58,157.49,6.3492]
[1721324122613,53.54907551,157.58,157.49,6.3492]
[1721324122822,53.54907551,157.58,157.48,22.2245]
[1721324123405,6.3485,157.52,157.48,15.8746]
[1721324123617,6.3488,157.51,157.48,15.8746]
[1721324124018,6.3484,157.52,157.48,22.2246]
[1721324124238,15.8673,157.56,157.48,22.2246]
[1721324124440,6.3481,157.53,157.48,22.2246]
[1721324124918,6.3477,157.54,157.49,1.26988659]
[1721324125224,6.3477,157.54,157.49,45.0]
[1721324125824,6.3477,157.54,157.49,51.3493]
[1721324126023,6.348,157.53,157.48,15.8746]
[1721324126224,6.3476,157.54,157.49,1.26974354]
[1721324126425,6.3476,157.54,157.49,45.0]
[1721324126723,6.3484,157.52,157.48,37.8283]
[1721324127119,6.3484,157.52,157.48,31.4786]
[1721324128410,6.3484,157.52,157.48,15.8746]
[1721324129236,6.3484,157.52,157.48,22.2245]
[1721324130003,31.06,157.55,157.48,15.8746]
[1721324130204,20.0,157.54,157.48,17.14443055]
[1721324130404,26.3476,157.54,157.5,6.349]
[1721324131004,26.3476,157.54,157.49,6.3494]
[1721324131205,6.348,157.53,157.49,6.3494]
[1721324133103,37.68357551,157.58,157.5,17.14248242]
[1721324133431,6.3468,157.56,157.52,6.3482]
[1721324133915,6.3472,157.55,157.51,6.3487]
[1721324134510,6.3468,157.56,157.51,6.3487]
[1721324134711,6.3464,157.57,157.51,1.26964798]
[1721324135120,20.0,157.56,157.51,1.26964798]
[1721324135522,26.3467,157.56,157.52,6.3482]
[1721324136826,26.3467,157.56,157.51,1.26964798]
[1721324137032,26.3467,157.56,157.51,7.61824798]
[1721324137536,6.3472,157.55,157.51,7.61824798]
[1721324137911,6.3472,157.55,157.51,1.26964798]
[1721324138108,6.3477,157.54,157.5,37.565]
[1721324138327,6.3477,157.54,157.5,22.2217]
[1721324139213,6.3481,157.53,157.5,15.8726]
[1721324139542,20.0,157.56,157.5,22.2215]
[1721324139709,6.3475,157.55,157.51,6.3487]
[1721324140230,6.3475,157.55,157.5,15.8726]
[1721324140231,15.5,157.52,157.5,22.2216]
[1721324141343,15.5,157.52,157.49,6.3496]
[1721324141908,15.5,157.51,157.49,6.3496]
[1721324142123,15.5,157.5,157.47,15.8753]
[1721324142432,15.8675,157.56,157.47,22.2253]
[1721324142433,15.5,157.49,157.47,22.2253]
[1721324143623,15.5,157.5,157.47,15.8753]
[1721324143813,15.5,157.5,157.49,6.3496]
[1721324144211,15.5,157.51,157.49,6.3496]
[1721324144408,15.5,157.5,157.48,6.3498]
[1721324145236,15.5,157.5,157.47,22.2257]
[1721324145415,15.5,157.48,157.47,6.3504]
[1721324145735,15.5,157.48,157.46,22.2274]